[Event "Skalica Rapid 2020"]
[Site "Skalica"]
[Date "2020.08.29"]
[Round "6.1"]
[White "Samoun Florent"]
[Black "Basso, Pier Luigi"]
[Result "0-1"]
[ECO "C77"]
[WhiteElo "2228"]
[BlackElo "2443"]
[Annotator "ChessBase"]
[PlyCount "96"]
[EventDate "2020.08.29"]
[EventType "swiss"]
[EventCountry "SVK"]
[SourceTitle "playchess.com"]
[Source "ChessBase"]
[SourceQuality "1"]
[TimeControl "600+5"]

1. e4 {[%emt 0:00:00]} e5 {[%emt 0:00:00]} 2. Nf3 {[%emt 0:00:00]} Nc6 {[%emt 0:00:00]} 3. Bb5 {[%emt 0:00:02]} a6 {[%emt 0:00:00]} 4. Ba4 {[%emt 0:00:01]} Nf6 {[%emt 0:00:03]} 5. d3 {[%emt 0:00:02]} b5 {[%emt 0:00:01]} 6. Bb3 {[%emt 0:00:02]} Bc5 {[%emt 0:00:02]} 7. c3 {[%emt 0:00:02]} O-O {[%emt 0:00:06]} 8. O-O {[%emt 0:00:03]} Re8 {[%emt 0:00:15]} 9. Nbd2 {[%emt 0:00:06]} d6 {[%emt 0:00:08]} 10. Re1 {[%emt 0:00:09]} h6 {[%emt 0:00:01]} 11. Nf1 {[%emt 0:00:20]} Bb6 {[%emt 0:00:02]} 12. Be3 {[%emt 0:00:19]} Bxe3 {[%emt 0:00:02]} 13. Nxe3 {[%emt 0:00:04]} Ne7 {[%emt 0:00:05]} 14. Bc2 {[%emt 0:00:15]} Ng6 {[%emt 0:00:03]} 15. d4 {[%emt 0:02:39]} exd4 {[%emt 0:00:13]} 16. Nxd4 {[%emt 0:00:03]} Bb7 {[%emt 0:00:36]} 17. f3 {[%emt 0:00:15]} d5 {[%emt 0:00:37]} 18. exd5 {[%emt 0:00:16]} Nf4 {[%emt 0:00:37]} 19. Nc6 {[%emt 0:01:39]} Qd6 {[%emt 0:00:04]} 20. Nf5 {[%emt 0:01:00]} Qc5+ {[%emt 0:00:12]} 21. Qd4 {[%emt 0:00:22]} Qxd4+ {[%emt 0:00:12]} 22. Nfxd4 {[%emt 0:00:07]} N4xd5 {[%emt 0:00:25]} 23. Na5 {[%emt 0:00:28]} Rxe1+ {[%emt 0:00:22]} 24. Rxe1 {[%emt 0:00:02]} Bc8 {[%emt 0:00:02]} 25. c4 {[%emt 0:00:26]} Nb4 {[%emt 0:00:21]} 26. Bb1 {[%emt 0:00:30]} bxc4 {[%emt 0:00:20]} 27. Nxc4 {[%emt 0:00:04]} Bd7 {[%emt 0:00:02]} 28. a3 {[%emt 0:00:21]} Nbd5 {[%emt 0:00:01]} 29. Kf2 {[%emt 0:00:43]} Kf8 {[%emt 0:00:10]} 30. Ne5 {[%emt 0:00:14]} Rb8 {[%emt 0:00:28]} 31. Nxd7+ {[%emt 0:00:14]} Nxd7 {[%emt 0:00:01]} 32. b4 {[%emt 0:00:01]} c5 {[%emt 0:00:15]} 33. bxc5 {[%emt 0:00:09]} Nxc5 {[%emt 0:00:12]} 34. Re5 {[%emt 0:00:26]} Rxb1 {[%emt 0:00:42]} 35. Rxd5 {[%emt 0:00:03]} Rc1 {[%emt 0:00:14]} 36. Nc6 {[%emt 0:01:13]} g6 {[%emt 0:00:15]} 37. Nb4 {[%emt 0:00:12]} Rc3 {[%emt 0:00:05]} 38. Kg3 {[%emt 0:00:09]} a5 {[%emt 0:00:10]} 39. Nc6 {[%emt 0:00:03]} Ne4+ {[%emt 0:00:01]} 40. Kf4 {[%emt 0:00:01]} Nf6 {[%emt 0:00:12]} 41. Rd8+ {[%emt 0:00:01]} Kg7 {[%emt 0:00:02]} 42. Nxa5 {[%emt 0:00:02]} Rxa3 {[%emt 0:00:12]} 43. Nb7 {[%emt 0:00:11]} Ra2 {[%emt 0:00:04]} 44. Kg3 {[%emt 0:00:12]} Nh5+ {[%emt 0:00:02]} 45. Kh3 {[%emt 0:00:01]} Nf4+ {[%emt 0:00:01]} 46. Kg3 {[%emt 0:00:01]} g5 {[%emt 0:00:07]} 47. Kg4 {[%emt 0:00:12]} Kg6 {[%emt 0:00:14]} 48. Rg8+ {[%emt 0:00:08]} Kf6 {[%emt 0:00:02]} 0-1

[Event "Skalica Rapid 2020"]
[Site "Skalica"]
[Date "2020.08.29"]
[Round "6.1"]
[White "Beres, Dominik"]
[Black "Osicka, Premysl"]
[Result "1-0"]
[ECO "C02"]
[WhiteElo "1988"]
[BlackElo "1590"]
[Annotator "NA"]
[PlyCount "51"]
[EventDate "2020.08.29"]
[EventType "swiss"]
[EventCountry "SVK"]
[SourceTitle "playchess.com"]
[Source "ChessBase"]
[SourceQuality "1"]
[TimeControl "600+5"]

1. e4 {[%emt 0:00:00]} c5 {[%emt 0:00:00]} 2. Nf3 {[%emt 0:00:04]} Nc6 {[%emt 0:00:00]} 3. c3 {[%emt 0:00:04]} e6 {[%emt 0:00:00]} 4. d4 {[%emt 0:00:02]} d5 {[%emt 0:00:00]} 5. e5 {[%emt 0:00:07]} Qb6 {[%emt 0:00:13]} 6. Bd3 {[%emt 0:00:07]} Bd7 {[%emt 0:00:09]} 7. Bc2 {[%emt 0:00:07]} Rc8 {[%emt 0:00:31]} 8. O-O {[%emt 0:00:11]} cxd4 {[%emt 0:00:23]} 9. cxd4 {[%emt 0:00:05]} Nge7 {[%emt 0:00:02]} 10. Nc3 {[%emt 0:00:11]} Nb4 {[%emt 0:00:13]} 11. Bb1 {[%emt 0:00:24]} Ng6 {[%emt 0:00:47]} 12. h4 {[%emt 0:00:26]} Be7 {[%emt 0:00:38]} 13. h5 {[%emt 0:00:35]} Nf8 {[%emt 0:00:02]} 14. h6 {[%emt 0:00:27]} gxh6 {[%emt 0:01:29]} 15. Bxh6 {[%emt 0:00:13]} Kd8 {[%emt 0:00:06]} 16. Bg5 {[%emt 0:00:23]} h6 {[%emt 0:02:04]} 17. Bxe7+ {[%emt 0:00:15]} Kxe7 {[%emt 0:00:01]} 18. a3 {[%emt 0:00:06]} Nc6 {[%emt 0:00:04]} 19. Na4 {[%emt 0:00:28]} Qd8 {[%emt 0:00:30]} 20. Nc5 {[%emt 0:00:09]} Ng6 {[%emt 0:00:17]} 21. Nxb7 {[%emt 0:00:07]} Qg8 {[%emt 0:00:01]} 22. Bxg6 {[%emt 0:00:25]} Qxg6 {[%emt 0:00:02]} 23. Nh4 {[%emt 0:00:28]} Qe4 {[%emt 0:00:11]} 24. Qh5 {[%emt 0:00:34]} Rcg8 {[%emt 0:00:32]} 25. Nd6 {[%emt 0:00:06]} Be8 {[%emt 0:00:16]} 26. Nxe4 {[%emt 0:00:04]} 1-0

[Event "Skalica Rapid 2020"]
[Site "Skalica"]
[Date "2020.08.29"]
[Round "6.2"]
[White "Grieve, Harry"]
[Black "Pechac, Jergus"]
[Result "1-0"]
[ECO "D00"]
[WhiteElo "1887"]
[BlackElo "2430"]
[Annotator "ChessBase"]
[PlyCount "85"]
[EventDate "2020.08.29"]
[EventType "swiss"]
[EventCountry "SVK"]
[SourceTitle "playchess.com"]
[Source "ChessBase"]
[SourceQuality "1"]
[TimeControl "600+5"]

1. d4 {[%emt 0:00:00]} d5 {[%emt 0:00:00]} 2. Bg5 {[%emt 0:00:02]} f6 {[%emt 0:00:00]} 3. Bh4 {[%emt 0:00:13]} Nh6 {[%emt 0:00:01]} 4. e3 {[%emt 0:00:02]} c5 {[%emt 0:00:15]} 5. dxc5 {[%emt 0:00:28]} e5 {[%emt 0:00:46]} 6. Nc3 {[%emt 0:01:31]} Be6 {[%emt 0:00:01]} 7. Nf3 {[%emt 0:00:07]} Nc6 {[%emt 0:00:07]} 8. Bb5 {[%emt 0:00:18]} Qa5 {[%emt 0:00:52]} 9. a3 {[%emt 0:00:34]} Rd8 {[%emt 0:01:56]} 10. b4 {[%emt 0:00:21]} Qc7 {[%emt 0:00:01]} 11. Bg3 {[%emt 0:00:28]} Be7 {[%emt 0:00:10]} 12. Nd4 {[%emt 0:00:50]} Bf7 {[%emt 0:00:17]} 13. O-O {[%emt 0:00:56]} O-O {[%emt 0:00:02]} 14. Ba4 {[%emt 0:00:19]} a6 {[%emt 0:00:10]} 15. Qe2 {[%emt 0:00:17]} Qc8 {[%emt 0:00:19]} 16. Nxc6 {[%emt 0:00:15]} bxc6 {[%emt 0:00:02]} 17. e4 {[%emt 0:00:12]} d4 {[%emt 0:00:48]} 18. Nb1 {[%emt 0:00:04]} Kh8 {[%emt 0:00:47]} 19. Nd2 {[%emt 0:00:01]} a5 {[%emt 0:00:57]} 20. Bb3 {[%emt 0:00:29]} Bxb3 {[%emt 0:00:35]} 21. Nxb3 {[%emt 0:00:02]} axb4 {[%emt 0:00:01]} 22. axb4 {[%emt 0:00:01]} Qe6 {[%emt 0:00:02]} 23. Ra6 {[%emt 0:00:32]} d3 {[%emt 0:00:03]} 24. Qd2 {[%emt 0:01:12]} Qc4 {[%emt 0:00:01]} 25. Ra2 {[%emt 0:00:12]} Qxe4 {[%emt 0:00:21]} 26. c3 {[%emt 0:01:24]} Qd5 {[%emt 0:01:01]} 27. Na5 {[%emt 0:00:27]} e4 {[%emt 0:00:11]} 28. Nb7 {[%emt 0:00:40]} Ra8 {[%emt 0:00:07]} 29. Rfa1 {[%emt 0:00:08]} Rxa2 {[%emt 0:00:04]} 30. Qxa2 {[%emt 0:00:05]} Qxa2 {[%emt 0:01:06]} 31. Rxa2 {[%emt 0:00:00]} f5 {[%emt 0:00:00]} 32. Bd6 {[%emt 0:00:12]} Ng8 {[%emt 0:00:08]} 33. Na5 {[%emt 0:00:08]} f4 {[%emt 0:00:05]} 34. Nxc6 {[%emt 0:00:02]} e3 {[%emt 0:00:06]} 35. Kf1 {[%emt 0:00:09]} Bxd6 {[%emt 0:00:33]} 36. cxd6 {[%emt 0:00:01]} Nf6 {[%emt 0:00:01]} 37. Ne5 {[%emt 0:00:08]} d2 {[%emt 0:00:12]} 38. Ke2 {[%emt 0:00:14]} Ne4 {[%emt 0:00:02]} 39. Ra1 {[%emt 0:00:05]} Nxc3+ {[%emt 0:00:52]} 40. Kd3 {[%emt 0:00:00]} Na2 {[%emt 0:00:11]} 41. fxe3 {[%emt 0:00:07]} fxe3 {[%emt 0:00:01]} 42. Kxe3 {[%emt 0:00:02]} Rf6 {[%emt 0:00:10]} 43. d7 {[%emt 0:00:10]} 1-0

[Event "Skalica Rapid 2020"]
[Site "Skalica"]
[Date "2020.08.29"]
[Round "6.2"]
[White "Cedzo, Adam"]
[Black "Stevik, Patrik"]
[Result "0-1"]
[ECO "A04"]
[WhiteElo "1585"]
[BlackElo "1895"]
[Annotator "NA"]
[PlyCount "27"]
[EventDate "2020.08.29"]
[EventType "swiss"]
[EventCountry "SVK"]
[SourceTitle "playchess.com"]
[Source "ChessBase"]
[SourceQuality "1"]
[TimeControl "600+5"]

1. Nf3 {[%emt 0:00:00]} Nc6 {[%emt 0:00:00]} 2. Nd4 Ne5 3. Nc3 {[%emt 0:00:00]} Nc4 {[%emt 0:00:00]} 4. Nf5 {[%emt 0:00:13]} Nb6 {[%emt 0:00:00]} 5. Ng3 {[%emt 0:00:24]} Nf6 {[%emt 0:00:00]} 6. Nge4 {[%emt 0:00:17]} Ng4 {[%emt 0:00:01]} 7. Nc5 {[%emt 0:00:04]} Ne5 {[%emt 0:00:02]} 8. Nd3 {[%emt 0:00:36]} Nc6 {[%emt 0:00:03]} 9. Nf4 {[%emt 0:00:43]} Nc4 {[%emt 0:00:19]} 10. Nd3 {[%emt 0:00:16]} Nd6 {[%emt 0:00:02]} 11. Nf4 {[%emt 0:00:28]} Nf5 {[%emt 0:00:01]} 12. Nh3 {[%emt 0:00:05]} Nh6 {[%emt 0:00:02]} 13. Ng1 {[%emt 0:00:02]} Ng8 {[%emt 0:00:01]} 14. Nb1 {[%emt 0:00:01]} 0-1

[Event "Skalica Rapid 2020"]
[Site "Skalica"]
[Date "2020.08.29"]
[Round "6.3"]
[White "Yankelevich, Lev"]
[Black "Krupa Miroslav"]
[Result "1-0"]
[ECO "E07"]
[WhiteElo "2388"]
[BlackElo "1816"]
[Annotator "ChessBase"]
[PlyCount "85"]
[EventDate "2020.08.29"]
[EventType "swiss"]
[EventCountry "SVK"]
[SourceTitle "playchess.com"]
[Source "ChessBase"]
[SourceQuality "1"]
[TimeControl "600+5"]

1. Nf3 {[%emt 0:00:00]} Nf6 {[%emt 0:00:00]} 2. c4 {[%emt 0:00:01]} e6 {[%emt 0:00:06]} 3. Nc3 {[%emt 0:00:08]} d5 {[%emt 0:00:02]} 4. d4 {[%emt 0:00:01]} Be7 {[%emt 0:00:04]} 5. g3 {[%emt 0:00:14]} O-O {[%emt 0:00:09]} 6. Bg2 {[%emt 0:00:02]} c6 {[%emt 0:00:23]} 7. Nd2 {[%emt 0:00:13]} b6 {[%emt 0:00:18]} 8. O-O {[%emt 0:00:03]} Bb7 {[%emt 0:00:02]} 9. e4 {[%emt 0:00:05]} dxe4 {[%emt 0:00:11]} 10. Ndxe4 {[%emt 0:00:03]} Nbd7 {[%emt 0:00:23]} 11. Qa4 {[%emt 0:00:30]} Nxe4 {[%emt 0:00:38]} 12. Nxe4 {[%emt 0:00:03]} Nf6 {[%emt 0:00:04]} 13. Be3 {[%emt 0:00:03]} Qd7 {[%emt 0:00:29]} 14. Rfd1 {[%emt 0:00:18]} Rfd8 {[%emt 0:00:13]} 15. Nc3 {[%emt 0:00:24]} c5 {[%emt 0:03:26]} 16. dxc5 {[%emt 0:00:04]} Qxa4 {[%emt 0:00:06]} 17. Nxa4 {[%emt 0:00:02]} Bxg2 {[%emt 0:00:05]} 18. Kxg2 {[%emt 0:00:01]} bxc5 {[%emt 0:00:07]} 19. Bxc5 {[%emt 0:00:27]} Bxc5 {[%emt 0:00:02]} 20. Nxc5 {[%emt 0:00:01]} Rdc8 {[%emt 0:00:10]} 21. b4 {[%emt 0:00:02]} a5 {[%emt 0:00:19]} 22. a3 {[%emt 0:00:01]} Rab8 {[%emt 0:00:40]} 23. Rab1 {[%emt 0:00:02]} Kf8 {[%emt 0:00:16]} 24. Rdc1 {[%emt 0:00:20]} axb4 {[%emt 0:00:31]} 25. axb4 {[%emt 0:00:01]} Ke7 {[%emt 0:00:01]} 26. Na6 {[%emt 0:00:04]} Rb6 {[%emt 0:00:19]} 27. b5 {[%emt 0:00:03]} Ne4 {[%emt 0:00:34]} 28. c5 {[%emt 0:00:03]} Rb7 {[%emt 0:00:01]} 29. f3 {[%emt 0:01:10]} Nf6 {[%emt 0:00:25]} 30. Nb4 {[%emt 0:00:25]} Nd5 {[%emt 0:00:26]} 31. Nc6+ {[%emt 0:01:25]} Ke8 {[%emt 0:00:26]} 32. Ne5 {[%emt 0:00:40]} Ke7 {[%emt 0:00:48]} 33. Nc6+ {[%emt 0:00:10]} Ke8 {[%emt 0:00:02]} 34. Na5 {[%emt 0:00:01]} Ra7 {[%emt 0:00:23]} 35. Nc4 {[%emt 0:00:01]} Ke7 {[%emt 0:00:06]} 36. Ne5 {[%emt 0:00:52]} Rb7 {[%emt 0:00:10]} 37. Kh3 {[%emt 0:00:20]} f6 {[%emt 0:00:14]} 38. Nc6+ {[%emt 0:00:01]} Ke8 {[%emt 0:00:06]} 39. Na5 {[%emt 0:00:51]} Ra7 {[%emt 0:00:06]} 40. Nc4 {[%emt 0:00:01]} Ke7 {[%emt 0:00:01]} 41. b6 {[%emt 0:00:06]} Rb7 {[%emt 0:00:11]} 42. Rb5 {[%emt 0:00:24]} Ke8 {[%emt 0:00:17]} 43. Nd6+ {[%emt 0:00:02]} 1-0

[Event "Skalica Rapid 2020"]
[Site "Skalica"]
[Date "2020.08.29"]
[Round "6.3"]
[White "Sevcikova, Lucia"]
[Black "Pekar, Matus"]
[Result "1-0"]
[ECO "B08"]
[WhiteElo "1801"]
[BlackElo "1575"]
[Annotator "NA"]
[PlyCount "69"]
[EventDate "2020.08.29"]
[EventType "swiss"]
[EventCountry "SVK"]
[SourceTitle "playchess.com"]
[Source "ChessBase"]
[SourceQuality "1"]
[TimeControl "600+5"]

1. e4 {[%emt 0:00:00]} d6 {[%emt 0:00:00]} 2. d4 {[%emt 0:00:00]} g6 {[%emt 0:00:00]} 3. Nf3 {[%emt 0:00:01]} Nf6 {[%emt 0:00:00]} 4. Nc3 {[%emt 0:00:02]} Bg7 {[%emt 0:00:02]} 5. Be3 {[%emt 0:00:04]} O-O {[%emt 0:00:09]} 6. Be2 {[%emt 0:00:03]} c6 {[%emt 0:00:13]} 7. a4 {[%emt 0:00:02]} Nbd7 {[%emt 0:00:11]} 8. O-O {[%emt 0:00:10]} e5 {[%emt 0:00:09]} 9. Qd2 {[%emt 0:00:13]} Re8 {[%emt 0:00:27]} 10. Bc4 {[%emt 0:00:31]} exd4 {[%emt 0:00:32]} 11. Bxd4 {[%emt 0:00:02]} Nxe4 {[%emt 0:01:43]} 12. Nxe4 Rxe4 {[%emt 0:00:03]} 13. Bxf7+ {[%emt 0:01:03]} Kf8 {[%emt 0:00:43]} 14. Bxg7+ {[%emt 0:00:13]} Kxg7 {[%emt 0:00:10]} 15. Bb3 {[%emt 0:00:10]} Nf6 {[%emt 0:00:25]} 16. Ng5 {[%emt 0:00:14]} Re7 {[%emt 0:01:21]} 17. Rfe1 {[%emt 0:00:13]} d5 {[%emt 0:00:17]} 18. Rxe7+ {[%emt 0:00:40]} Qxe7 {[%emt 0:00:03]} 19. Re1 {[%emt 0:00:00]} Qd6 {[%emt 0:00:13]} 20. Qe3 {[%emt 0:00:25]} Rb8 {[%emt 0:01:59]} 21. Qe7+ {[%emt 0:00:12]} Qxe7 {[%emt 0:00:02]} 22. Rxe7+ {[%emt 0:00:01]} Kh6 {[%emt 0:00:01]} 23. Nf7+ {[%emt 0:00:08]} Kh5 {[%emt 0:00:09]} 24. Nd6 {[%emt 0:00:08]} a6 {[%emt 0:00:38]} 25. Nxc8 {[%emt 0:00:23]} Rxc8 {[%emt 0:00:01]} 26. Rxb7 {[%emt 0:00:02]} c5 {[%emt 0:00:12]} 27. c3 {[%emt 0:00:21]} Rc6 {[%emt 0:00:04]} 28. f3 {[%emt 0:00:09]} h6 {[%emt 0:00:15]} 29. Re7 {[%emt 0:00:21]} Rd6 {[%emt 0:00:50]} 30. Re5+ {[%emt 0:00:10]} Kh4 {[%emt 0:00:09]} 31. g3+ {[%emt 0:00:21]} Kh3 {[%emt 0:00:04]} 32. Bd1 {[%emt 0:00:03]} Ne4 {[%emt 0:00:49]} 33. fxe4 {[%emt 0:00:13]} dxe4 {[%emt 0:00:02]} 34. Be2 {[%emt 0:00:06]} Rd2 {[%emt 0:00:09]} 35. Rxe4 {[%emt 0:00:04]} 1-0

[Event "Skalica Rapid 2020"]
[Site "Skalica"]
[Date "2020.08.29"]
[Round "6.4"]
[White "Manik Mikulas"]
[Black "Cajka Tibor"]
[Result "1-0"]
[ECO "B46"]
[WhiteElo "2313"]
[BlackElo "2116"]
[Annotator "ChessBase"]
[PlyCount "87"]
[EventDate "2020.08.29"]
[EventType "swiss"]
[EventCountry "SVK"]
[SourceTitle "playchess.com"]
[Source "ChessBase"]
[SourceQuality "1"]
[TimeControl "600+5"]

1. e4 {[%emt 0:00:00]} c5 {[%emt 0:00:00]} 2. Nf3 {[%emt 0:00:00]} a6 {[%emt 0:00:00]} 3. Nc3 {[%emt 0:00:02]} e6 {[%emt 0:00:00]} 4. d4 {[%emt 0:00:01]} cxd4 {[%emt 0:00:01]} 5. Nxd4 {[%emt 0:00:06]} Nc6 {[%emt 0:00:02]} 6. Nxc6 {[%emt 0:00:00]} bxc6 {[%emt 0:00:15]} 7. Bd3 {[%emt 0:00:00]} d5 {[%emt 0:00:13]} 8. Qe2 {[%emt 0:00:02]} Bb4 {[%emt 0:00:39]} 9. O-O {[%emt 0:00:06]} Ne7 {[%emt 0:00:08]} 10. exd5 {[%emt 0:00:34]} exd5 {[%emt 0:00:34]} 11. Qh5 {[%emt 0:00:07]} Be6 {[%emt 0:00:34]} 12. Re1 {[%emt 0:00:32]} Qd7 {[%emt 0:00:45]} 13. a3 {[%emt 0:00:39]} Bd6 {[%emt 0:00:06]} 14. Bg5 {[%emt 0:00:19]} a5 {[%emt 0:01:08]} 15. h3 {[%emt 0:00:34]} Rb8 {[%emt 0:00:10]} 16. Rab1 {[%emt 0:00:03]} h6 {[%emt 0:00:26]} 17. Ne2 {[%emt 0:00:17]} g6 {[%emt 0:00:51]} 18. Qh4 {[%emt 0:00:05]} Be5 {[%emt 0:00:51]} 19. Bd2 {[%emt 0:00:42]} Rxb2 {[%emt 0:00:25]} 20. Rxb2 {[%emt 0:00:21]} Bxb2 {[%emt 0:00:02]} 21. Rb1 {[%emt 0:00:04]} Be5 {[%emt 0:00:17]} 22. Bxa5 {[%emt 0:00:07]} Nf5 {[%emt 0:00:37]} 23. Bxf5 {[%emt 0:00:09]} Bxf5 {[%emt 0:00:05]} 24. Bc3 {[%emt 0:00:36]} g5 {[%emt 0:00:27]} 25. Qh5 {[%emt 0:00:25]} Qd6 {[%emt 0:00:37]} 26. Ng3 {[%emt 0:01:49]} Bg6 {[%emt 0:00:54]} 27. Qe2 {[%emt 0:00:11]} f6 {[%emt 0:00:06]} 28. Re1 {[%emt 0:00:14]} Kf7 {[%emt 0:00:10]} 29. Bxe5 {[%emt 0:00:11]} fxe5 {[%emt 0:00:01]} 30. Qf3+ {[%emt 0:00:09]} Qf6 {[%emt 0:00:06]} 31. Qc3 {[%emt 0:00:03]} Re8 {[%emt 0:00:11]} 32. a4 {[%emt 0:00:03]} Qd6 {[%emt 0:00:32]} 33. a5 {[%emt 0:00:07]} d4 {[%emt 0:00:12]} 34. Qf3+ {[%emt 0:00:02]} Kg7 {[%emt 0:00:04]} 35. Nf5+ {[%emt 0:00:05]} Bxf5 {[%emt 0:00:03]} 36. Qxf5 {[%emt 0:00:02]} c5 {[%emt 0:00:10]} 37. Rb1 {[%emt 0:00:09]} Rb8 {[%emt 0:00:24]} 38. Rxb8 {[%emt 0:00:08]} Qxb8 {[%emt 0:00:01]} 39. Qd7+ {[%emt 0:00:01]} Kg8 {[%emt 0:00:04]} 40. a6 {[%emt 0:00:04]} Qb1+ {[%emt 0:00:42]} 41. Kh2 {[%emt 0:00:01]} Qc1 {[%emt 0:00:01]} 42. Qe6+ {[%emt 0:00:05]} Kh7 {[%emt 0:00:00]} 43. Qf7+ {[%emt 0:00:05]} Kh8 {[%emt 0:00:02]} 44. a7 {[%emt 0:00:01]} 1-0

[Event "Skalica Rapid 2020"]
[Site "Skalica"]
[Date "2020.08.29"]
[Round "6.4"]
[White "Tupy, Emil"]
[Black "Stos, Radek"]
[Result "1-0"]
[ECO "B30"]
[WhiteElo "1538"]
[BlackElo "1790"]
[Annotator "NA"]
[PlyCount "59"]
[EventDate "2020.08.29"]
[EventType "swiss"]
[EventCountry "SVK"]
[SourceTitle "playchess.com"]
[Source "ChessBase"]
[SourceQuality "1"]
[TimeControl "600+5"]

1. e4 {[%emt 0:00:00]} c5 {[%emt 0:00:00]} 2. Nf3 {[%emt 0:00:01]} Nc6 {[%emt 0:00:00]} 3. c3 {[%emt 0:00:02]} d6 {[%emt 0:00:00]} 4. d4 {[%emt 0:00:05]} cxd4 {[%emt 0:00:00]} 5. Nxd4 {[%emt 0:00:02]} Bd7 {[%emt 0:00:01]} 6. Bc4 {[%emt 0:00:09]} Nf6 {[%emt 0:00:02]} 7. Nd2 {[%emt 0:00:15]} g6 {[%emt 0:00:02]} 8. O-O {[%emt 0:00:03]} Bg7 {[%emt 0:00:01]} 9. Re1 {[%emt 0:00:03]} O-O {[%emt 0:00:02]} 10. f3 {[%emt 0:00:28]} Rc8 {[%emt 0:00:36]} 11. Bb3 {[%emt 0:00:09]} Nh5 {[%emt 0:00:04]} 12. Nf1 {[%emt 0:00:26]} Na5 {[%emt 0:00:41]} 13. Bc2 {[%emt 0:00:16]} Nc4 {[%emt 0:00:17]} 14. b3 {[%emt 0:00:21]} Nb6 {[%emt 0:00:24]} 15. Qd3 {[%emt 0:00:16]} a6 {[%emt 0:00:23]} 16. Be3 {[%emt 0:00:42]} Bc6 {[%emt 0:00:46]} 17. Rac1 {[%emt 0:00:36]} Nd7 {[%emt 0:00:54]} 18. f4 {[%emt 0:00:32]} e5 {[%emt 0:00:02]} 19. Nxc6 {[%emt 0:00:03]} Rxc6 {[%emt 0:00:02]} 20. f5 {[%emt 0:00:23]} Nf4 {[%emt 0:00:07]} 21. Bxf4 {[%emt 0:00:21]} exf4 {[%emt 0:00:02]} 22. Bb1 {[%emt 0:00:27]} Ne5 {[%emt 0:00:07]} 23. Qd5 {[%emt 0:00:33]} Qg5 {[%emt 0:00:04]} 24. Kh1 {[%emt 0:00:54]} f3 {[%emt 0:00:30]} 25. gxf3 {[%emt 0:00:30]} Nxf3 {[%emt 0:00:04]} 26. Ng3 {[%emt 0:00:34]} Nxe1 {[%emt 0:00:03]} 27. Rxe1 {[%emt 0:00:01]} Bxc3 {[%emt 0:00:03]} 28. fxg6 {[%emt 0:00:10]} hxg6 {[%emt 0:00:02]} 29. Qxg5 {[%emt 0:00:07]} Bxe1 {[%emt 0:00:19]} 30. Nf5 {[%emt 0:00:00]} 1-0

[Event "Skalica Rapid 2020"]
[Site "Skalica"]
[Date "2020.08.29"]
[Round "6.5"]
[White "Pacher Milan"]
[Black "Pniaczek, Marek"]
[Result "1-0"]
[ECO "C52"]
[WhiteElo "2452"]
[BlackElo "1969"]
[Annotator "ChessBase"]
[PlyCount "83"]
[EventDate "2020.08.29"]
[EventType "swiss"]
[EventCountry "SVK"]
[SourceTitle "playchess.com"]
[Source "ChessBase"]
[SourceQuality "1"]
[TimeControl "600+5"]

1. e4 {[%emt 0:00:00]} e5 {[%emt 0:00:00]} 2. Nf3 {[%emt 0:00:00]} Nc6 {[%emt 0:00:00]} 3. Bc4 {[%emt 0:00:00]} Bc5 {[%emt 0:00:00]} 4. b4 {[%emt 0:00:01]} Bxb4 {[%emt 0:00:05]} 5. c3 {[%emt 0:00:01]} Ba5 {[%emt 0:00:01]} 6. d4 {[%emt 0:00:05]} Bb6 {[%emt 0:00:01]} 7. dxe5 {[%emt 0:00:25]} Nge7 {[%emt 0:00:12]} 8. Ba3 {[%emt 0:00:32]} O-O {[%emt 0:00:10]} 9. O-O {[%emt 0:00:04]} Na5 {[%emt 0:00:58]} 10. Be2 {[%emt 0:00:04]} Re8 {[%emt 0:00:28]} 11. Nd4 {[%emt 0:00:32]} Nec6 {[%emt 0:00:42]} 12. f4 {[%emt 0:00:11]} d5 {[%emt 0:00:49]} 13. exd6 {[%emt 0:00:38]} Rxe4 {[%emt 0:00:20]} 14. Kh1 {[%emt 0:00:07]} Nxd4 {[%emt 0:00:18]} 15. cxd4 {[%emt 0:00:08]} cxd6 {[%emt 0:01:01]} 16. Nd2 {[%emt 0:00:11]} Re3 {[%emt 0:00:33]} 17. Bb4 {[%emt 0:00:17]} Nc6 {[%emt 0:00:11]} 18. Rb1 {[%emt 0:00:21]} Nxd4 {[%emt 0:00:40]} 19. Nc4 {[%emt 0:00:23]} Rxe2 {[%emt 0:01:11]} 20. Bc3 {[%emt 0:00:23]} Bg4 {[%emt 0:02:55]} 21. Nxb6 {[%emt 0:00:33]} axb6 {[%emt 0:00:08]} 22. Qxd4 {[%emt 0:00:03]} f6 {[%emt 0:00:17]} 23. Rxb6 {[%emt 0:01:20]} d5 {[%emt 0:00:01]} 24. Rxb7 {[%emt 0:00:27]} Raxa2 {[%emt 0:00:18]} 25. Bb2 {[%emt 0:00:18]} h5 {[%emt 0:00:28]} 26. h3 {[%emt 0:00:19]} Bf5 {[%emt 0:00:05]} 27. Rf3 {[%emt 0:00:41]} h4 {[%emt 0:00:07]} 28. Rfb3 {[%emt 0:00:09]} Kh7 {[%emt 0:00:08]} 29. Qd1 {[%emt 0:02:27]} Qe8 {[%emt 0:00:03]} 30. Kh2 {[%emt 0:00:12]} Qe4 {[%emt 0:00:04]} 31. Qf1 {[%emt 0:00:02]} d4 {[%emt 0:00:09]} 32. R3b5 {[%emt 0:00:17]} d3 {[%emt 0:00:06]} 33. Rb4 {[%emt 0:00:28]} Qc6 {[%emt 0:00:07]} 34. R7b6 {[%emt 0:00:16]} Qa8 {[%emt 0:00:04]} 35. Rb8 {[%emt 0:00:13]} Qd5 {[%emt 0:00:05]} 36. R8b5 {[%emt 0:00:02]} Qe6 {[%emt 0:00:07]} 37. Qf3 {[%emt 0:00:09]} Kh6 {[%emt 0:00:05]} 38. Rb8 {[%emt 0:00:06]} d2 {[%emt 0:00:07]} 39. Rh8+ {[%emt 0:00:06]} Bh7 {[%emt 0:00:01]} 40. Rxh7+ {[%emt 0:00:12]} Kxh7 {[%emt 0:00:05]} 41. Qh5+ {[%emt 0:00:02]} Kg8 {[%emt 0:00:00]} 42. Rb8+ {[%emt 0:00:01]} 1-0